fUSD/lending_fUSD_20240927
["ID","MTS","AMOUNT","RATE_DAILY","PERIOD"]
[339288020,1727439052396,-500.0,0.0001189,2]
[339288021,1727439052406,-164.70165606,0.0001189,2]
[339288022,1727439052418,-335.29834394,0.0001189,2]
[339288023,1727439052428,-18.38307355,0.0001189,2]
[339288024,1727439052440,-481.61692645,0.0001189,2]
[339288025,1727439052449,-500.0,0.0001189,2]
[339288026,1727439052459,-500.0,0.0001189,2]
[339288027,1727439052469,-2071.11,0.0001189,2]
[339288028,1727439052481,-149.19824917,0.0001189,2]
[339288029,1727439052493,-350.80175083,0.0001189,2]
[339288030,1727439052502,-500.0,0.0001189,2]
[339288031,1727439052512,-500.0,0.0001189,2]
[339288032,1727439052522,-300.0,0.0001189,2]
[339288033,1727439052531,-500.0,0.0001189,2]
[339288034,1727439052542,-500.0,0.0001189,2]
[339288035,1727439052553,-500.0,0.0001189,2]
[339288036,1727439052564,-500.0,0.0001189,2]
[339288037,1727439052573,-500.0,0.0001189,2]
[339288038,1727439052582,-500.0,0.0001189,2]
[339288039,1727439052592,-500.0,0.0001189,2]
[339288040,1727439052603,-500.0,0.0001189,2]
[339288041,1727439052612,-500.0,0.0001189,2]
[339288042,1727439052621,-500.0,0.0001189,2]
[339288043,1727439052631,-713.78,0.0001189,2]
[339288044,1727439052641,-713.78,0.0001189,2]
[339288045,1727439052650,-500.0,0.0001189,2]
[339288046,1727439052660,-500.0,0.0001189,2]
[339288047,1727439052669,-2362.65,0.0001189,2]
[339288048,1727439052679,-500.39786332,0.0001189,2]
[339288049,1727439052693,-1295.87497203,0.0001189,2]
[339288050,1727439052705,-566.37716465,0.0001189,2]
[339288051,1727439052715,-625.63,0.0001189,2]
[339288052,1727439052725,-500.77071494,0.0001189,2]
[339288053,1727439052735,-500.0,0.0001189,2]
[339288054,1727439052745,-500.0,0.0001189,2]
[339288055,1727439052755,-500.0,0.0001189,2]
[339288056,1727439052764,-500.0,0.0001189,2]
[339288057,1727439052774,-500.0,0.0001189,2]
[339288058,1727439052784,-500.0,0.0001189,2]
[339288059,1727439052795,-500.84917235,0.0001189,2]
[339288060,1727439052805,-500.0,0.0001189,2]
[339288061,1727439052815,-501.31453248,0.0001189,2]
[339288062,1727439052825,-516.6,0.0001189,2]
[339288063,1727439052835,-500.0,0.0001189,2]
[339288064,1727439052844,-500.0,0.0001189,2]
[339288065,1727439052854,-500.0,0.0001189,2]
[339288066,1727439052863,-500.0,0.0001189,2]
[339288067,1727439052874,-500.0,0.0001189,2]
[339288068,1727439052884,-1161.1,0.0001189,2]
[339288069,1727439052893,-500.0,0.0001189,2]
[339288070,1727439052903,-1161.1,0.0001189,2]
[339288071,1727439052913,-1918.1,0.0001189,2]
[339288072,1727439052923,-1542.6,0.0001189,2]
[339288073,1727439052933,-659.05821021,0.0001189,2]
[339288074,1727439052946,-1259.04178979,0.0001189,2]
[339288075,1727439052956,-1542.6,0.0001189,2]
[339288076,1727439052966,-500.0,0.0001189,2]
[339288077,1727439052976,-500.0,0.0001189,2]
[339288078,1727439052985,-206.5225095,0.0001189,2]
[339288079,1727439052997,-293.4774905,0.0001189,2]
[339288080,1727439053007,-914.41,0.0001189,2]
[339288081,1727439053017,-500.0,0.0001189,2]
[339288082,1727439053027,-500.0,0.0001189,2]
[339288083,1727439053037,-500.0,0.0001189,2]
[339288084,1727439053049,-500.0,0.0001189,2]
[339288085,1727439053058,-500.0,0.0001189,2]
[339288086,1727439053067,-500.0,0.0001189,2]
[339288087,1727439053077,-500.0,0.0001189,2]
[339288088,1727439053086,-286.77401305,0.0001189,2]
[339288089,1727439053095,-500.0,0.0001189,2]
[339288090,1727439053105,-500.0,0.0001189,2]
[339288091,1727439053114,-500.0,0.0001189,2]
[339288092,1727439053125,-500.0,0.0001189,2]
[339288093,1727439053135,-500.0,0.0001189,2]
[339288094,1727439053146,-500.0,0.0001189,2]
[339288095,1727439053155,-553.86,0.0001189,2]
[339288096,1727439053165,-553.86,0.0001189,2]
[339288097,1727439053175,-500.0,0.0001189,2]
[339288098,1727439053185,-667.7,0.0001189,2]
[339288099,1727439053194,-500.0,0.0001189,2]
[339288100,1727439053204,-500.0,0.0001189,2]
[339288101,1727439053214,-665.17,0.0001189,2]
[339288102,1727439053224,-500.0,0.0001189,2]
[339288103,1727439053234,-500.0,0.0001189,2]
[339288104,1727439053244,-500.0,0.0001189,2]
[339288105,1727439053254,-500.0,0.0001189,2]
[339288106,1727439053265,-500.0,0.0001189,2]
[339288107,1727439053276,-500.0,0.0001189,2]
[339288108,1727439053285,-626.22689194,0.0001189,2]
[339288109,1727439053295,-500.0,0.0001189,2]
[339288110,1727439053304,-500.0,0.0001189,2]
[339288111,1727439053314,-500.0,0.0001189,2]
[339288112,1727439053323,-649.45,0.0001189,2]
[339288113,1727439053332,-500.0,0.0001189,2]
[339288114,1727439053342,-500.0,0.0001189,2]
[339288115,1727439053352,-500.0,0.0001189,2]
[339288116,1727439053361,-500.0,0.0001189,2]
[339288117,1727439053372,-500.0,0.0001189,2]
[339288118,1727439053382,-500.0,0.0001189,2]
[339288119,1727439053393,-500.0,0.0001189,2]
[339288120,1727439053403,-500.0,0.0001189,2]
[339288121,1727439053413,-763.82,0.0001189,2]
[339288122,1727439053422,-779.06,0.0001189,2]
[339288123,1727439053431,-763.82,0.0001189,2]
[339288124,1727439053441,-779.06,0.0001189,2]
[339288125,1727439053451,-500.0,0.0001189,2]
[339288126,1727439053461,-500.0,0.0001189,2]
[339288127,1727439053470,-563.15,0.0001189,2]
[339288128,1727439053484,-506.07223409,0.0001189,2]
[339288129,1727439053494,-743.81,0.0001189,2]
[339288130,1727439053504,-721.59,0.0001189,2]
[339288131,1727439053514,-563.3,0.0001189,2]
[339288132,1727439053524,-728.89,0.0001189,2]
[339288133,1727439053533,-563.3,0.0001189,2]
[339288134,1727439053544,-728.89,0.0001189,2]
[339288135,1727439053554,-500.0,0.0001189,2]
[339288136,1727439053564,-500.0,0.0001189,2]
[339288137,1727439053574,-507.04,0.0001189,2]
[339288138,1727439053583,-507.04,0.0001189,2]
[339288139,1727439053594,-500.0,0.0001189,2]
[339288140,1727439053604,-500.0,0.0001189,2]
[339288141,1727439053614,-500.65,0.0001189,2]
[339288142,1727439053623,-1198.5,0.0001189,2]
[339288143,1727439053633,-500.0,0.0001189,2]
[339288144,1727439053643,-500.0,0.0001189,2]
[339288145,1727439053653,-500.0,0.0001189,2]
[339288146,1727439053662,-927.27,0.0001189,2]
[339288147,1727439053672,-927.27,0.0001189,2]
[339288148,1727439053681,-641.89,0.0001189,2]
[339288149,1727439053690,-641.89,0.0001189,2]
[339288150,1727439053700,-500.0,0.0001189,2]
[339288151,1727439053710,-178.68904957,0.0001189,2]
[339288152,1727439053719,-500.0,0.0001189,2]
[339288153,1727439053729,-500.0,0.0001189,2]
[339288154,1727439053738,-500.0,0.0001189,2]
[339288155,1727439053747,-500.0,0.0001189,2]
[339288156,1727439053757,-500.0,0.0001189,2]
[339288157,1727439053767,-500.0,0.0001189,2]
[339288158,1727439053777,-500.0,0.0001189,2]
[339288159,1727439053787,-500.0,0.0001189,2]
[339288160,1727439053797,-619.68,0.0001189,2]
[339288161,1727439053807,-619.68,0.0001189,2]
[339288162,1727439053817,-890.96,0.0001189,2]
[339288163,1727439053826,-500.0,0.0001189,2]
[339288164,1727439053835,-500.0,0.0001189,2]
[339288165,1727439053844,-679.75,0.0001189,2]
[339288166,1727439053853,-493.78268107,0.0001189,2]
[339288167,1727439053862,-500.0,0.0001189,2]
[339288168,1727439053872,-500.0,0.0001189,2]
[339288169,1727439053881,-500.0,0.0001189,2]
[339288170,1727439053891,-500.0,0.0001189,2]
[339288171,1727439053900,-500.0,0.0001189,2]
[339288172,1727439053911,-500.0,0.0001189,2]
[339288173,1727439053921,-500.0,0.0001189,2]
[339288174,1727439053931,-500.0,0.0001189,2]
[339288175,1727439053941,-598.21,0.0001189,2]
[339288176,1727439053951,-3956.67,0.0001189,2]
[339288177,1727439054022,-598.21,0.0001189,2]
[339288178,1727439054032,-824.34,0.0001189,2]
[339288179,1727439054042,-500.0,0.0001189,2]
[339288180,1727439054052,-712.32,0.0001189,2]
[339288181,1727439054062,-500.0,0.0001189,2]
[339288182,1727439054071,-712.32,0.0001189,2]
[339288183,1727439054081,-500.0,0.0001189,2]
[339288184,1727439054090,-500.0,0.0001189,2]
[339288185,1727439054099,-500.0,0.0001189,2]
[339288186,1727439054110,-500.0,0.0001189,2]
[339288187,1727439054119,-500.0,0.0001189,2]
[339288188,1727439054128,-1969.1,0.0001189,2]
[339288189,1727439054138,-103.55758537,0.0001189,2]
[339288190,1727439054156,-396.44241463,0.0001189,2]
[339288191,1727439054165,-500.0,0.0001189,2]
[339288192,1727439054175,-500.0,0.0001189,2]
[339288193,1727439054184,-1475.95,0.0001189,2]
[339288194,1727439054193,-319.81175666,0.0001189,2]
[339288195,1727439054202,-500.0,0.0001189,2]
[339288196,1727439054213,-500.0,0.0001189,2]
[339288197,1727439054222,-303.47736315,0.0001189,2]
[339288198,1727439054231,-500.0,0.0001189,2]
[339288199,1727439054241,-500.0,0.0001189,2]
[339288200,1727439054251,-500.0,0.0001189,2]
[339288201,1727439054260,-500.0,0.0001189,2]
[339288202,1727439054270,-592.09,0.0001189,2]
[339288203,1727439054279,-1105.97,0.0001189,2]
[339288204,1727439054289,-500.0,0.0001189,2]
[339288205,1727439054300,-1105.97,0.0001189,2]
[339288206,1727439054310,-500.0,0.0001189,2]
[339288207,1727439054319,-500.0,0.0001189,2]
[339288208,1727439054328,-500.0,0.0001189,2]
[339288209,1727439054338,-700.42,0.0001189,2]
[339288210,1727439054348,-700.42,0.0001189,2]
[339288211,1727439054359,-500.0,0.0001189,2]
[339288212,1727439054369,-425.69261214,0.0001189,2]
[339288213,1727439054379,-500.0,0.0001189,2]
[339288214,1727439054388,-500.0,0.0001189,2]
[339288215,1727439054397,-500.0,0.0001189,2]
[339288216,1727439054407,-500.0,0.0001189,2]
[339288217,1727439054416,-500.0,0.0001189,2]
[339288218,1727439054426,-500.0,0.0001189,2]
[339288219,1727439054435,-500.0,0.0001189,2]
[339288220,1727439054445,-500.0,0.0001189,2]
[339288221,1727439054454,-724.92,0.0001189,2]
[339288222,1727439054463,-500.0,0.0001189,2]
[339288223,1727439054473,-500.0,0.0001189,2]
[339288224,1727439054485,-500.0,0.0001189,2]
[339288225,1727439054495,-500.0,0.0001189,2]
[339288226,1727439054504,-982.33,0.0001189,2]
[339288227,1727439054513,-500.0,0.0001189,2]
[339288228,1727439054523,-982.33,0.0001189,2]
[339288229,1727439054532,-657.42,0.0001189,2]
[339288230,1727439054541,-500.0,0.0001189,2]
[339288231,1727439054554,-500.0,0.0001189,2]
[339288232,1727439054563,-501.1013876,0.0001189,2]
[339288233,1727439054573,-122.56319615,0.0001189,2]
[339288234,1727439054587,-1641.91680385,0.0001189,2]
[339288235,1727439054596,-502.88,0.0001189,2]
[339288236,1727439054606,-896.47,0.0001189,2]
[339288237,1727439054615,-896.47,0.0001189,2]
[339288238,1727439054624,-1889.18,0.0001189,2]
[339288239,1727439054634,-500.0,0.0001189,2]
[339288240,1727439054643,-500.0,0.0001189,2]
[339288241,1727439054652,-500.0,0.0001189,2]
[339288242,1727439054661,-500.0,0.0001189,2]
[339288243,1727439054671,-500.0,0.0001189,2]
[339288244,1727439054680,-500.0,0.0001189,2]
[339288245,1727439054689,-500.0,0.0001189,2]
[339288246,1727439054698,-500.0,0.0001189,2]
[339288247,1727439054707,-500.0,0.0001189,2]
[339288248,1727439054716,-500.0,0.0001189,2]
[339288249,1727439054725,-500.0,0.0001189,2]
[339288250,1727439054734,-1061.36,0.0001189,2]
[339288251,1727439054743,-500.0,0.0001189,2]
[339288252,1727439054753,-222.33680168,0.0001189,2]
[339288253,1727439054765,-839.02319832,0.0001189,2]
[339288254,1727439054774,-500.0,0.0001189,2]
[339288255,1727439054783,-500.0,0.0001189,2]
[339288256,1727439054792,-500.0,0.0001189,2]
[339288257,1727439054802,-500.0,0.0001189,2]
[339288258,1727439054812,-1048.35,0.0001189,2]
[339288259,1727439054821,-505.48,0.0001189,2]
[339288260,1727439054830,-450.5958717,0.0001189,2]
[339288261,1727439054839,-500.0,0.0001189,2]
[339288262,1727439054848,-500.0,0.0001189,2]
[339288263,1727439054858,-500.0,0.0001189,2]
[339288264,1727439054867,-500.0,0.0001189,2]
[339288265,1727439054877,-500.0,0.0001189,2]
[339288266,1727439054886,-500.0,0.0001189,2]
[339288267,1727439054896,-500.0,0.0001189,2]
[339288268,1727439054905,-500.0,0.0001189,2]
[339288269,1727439054915,-500.0,0.0001189,2]
[339288270,1727439054924,-699.61,0.0001189,2]
[339288271,1727439054934,-699.61,0.0001189,2]
[339288272,1727439054943,-632.06,0.0001189,2]
[339288273,1727439054952,-500.0,0.0001189,2]
[339288274,1727439054962,-500.0,0.0001189,2]
[339288275,1727439054971,-569.12,0.0001189,2]
[339288276,1727439054981,-501.63258691,0.0001189,2]
[339288277,1727439054990,-904.98,0.0001189,2]
[339288278,1727439055000,-500.0,0.0001189,2]
[339288279,1727439055009,-500.0,0.0001189,2]
[339288280,1727439055018,-527.64,0.0001189,2]
[339288281,1727439055029,-527.64,0.0001189,2]
[339288282,1727439055038,-500.0,0.0001189,2]
[339288283,1727439055050,-500.0,0.0001189,2]
[339288284,1727439055059,-500.0,0.0001189,2]
[339288285,1727439055069,-500.0,0.0001189,2]
[339288286,1727439055078,-500.0,0.0001189,2]
[339288287,1727439055088,-1818.56,0.0001189,2]
[339288288,1727439055099,-500.0,0.0001189,2]
[339288289,1727439055110,-500.0,0.0001189,2]
[339288290,1727439055119,-500.0,0.0001189,2]
[339288291,1727439055128,-500.0,0.0001189,2]
[339288292,1727439055137,-500.0,0.0001189,2]
[339288293,1727439055148,-555.42652392,0.0001189,2]
[339288294,1727439055158,-500.0,0.0001189,2]
[339288295,1727439055168,-500.0,0.0001189,2]
[339288296,1727439055177,-500.0,0.0001189,2]
[339288297,1727439055187,-761.81,0.0001189,2]
[339288298,1727439055196,-761.81,0.0001189,2]
[339288299,1727439055207,-500.0,0.0001189,2]
[339288300,1727439055219,-500.0,0.0001189,2]
[339288301,1727439055228,-500.0,0.0001189,2]
[339288302,1727439055238,-500.0,0.0001189,2]
[339288303,1727439055248,-500.0,0.0001189,2]
[339288304,1727439055257,-999.48,0.0001189,2]
[339288305,1727439055267,-512.24,0.0001189,2]
[339288306,1727439055276,-512.24,0.0001189,2]
[339288307,1727439055285,-935.56,0.0001189,2]
[339288308,1727439055294,-500.0,0.0001189,2]
[339288309,1727439055303,-500.0,0.0001189,2]
[339288310,1727439055312,-1001.33,0.0001189,2]
[339288311,1727439055321,-1001.33,0.0001189,2]
[339288312,1727439055332,-500.0,0.0001189,2]
[339288313,1727439055341,-500.0,0.0001189,2]
[339288314,1727439055352,-637.4,0.0001189,2]
[339288315,1727439055361,-500.0,0.0001189,2]
[339288316,1727439055371,-500.0,0.0001189,2]
[339288317,1727439055380,-500.0,0.0001189,2]
[339288318,1727439055389,-88.27721104,0.0001189,2]
[339288319,1727439055407,-411.72278896,0.0001189,2]
[339288320,1727439055418,-500.0,0.0001189,2]
[339288321,1727439055428,-763.75,0.0001189,2]
[339288322,1727439055437,-508.4365482,0.0001189,2]
[339288323,1727439055446,-500.0,0.0001189,2]
[339288324,1727439055455,-500.0,0.0001189,2]
[339288325,1727439055464,-500.0,0.0001189,2]
[339288326,1727439055474,-500.0,0.0001189,2]
[339288327,1727439055486,-500.0,0.0001189,2]
[339288328,1727439055496,-1842.75,0.0001189,2]
[339288329,1727439055505,-500.0,0.0001189,2]
[339288330,1727439055515,-675.91,0.0001189,2]
[339288331,1727439055524,-579.08923203,0.0001189,2]
[339288332,1727439055534,-500.0,0.0001189,2]
[339288333,1727439055544,-500.0,0.0001189,2]
[339288334,1727439055553,-1320.12,0.0001189,2]
[339288335,1727439055565,-500.0,0.0001189,2]
[339288336,1727439055574,-613.7,0.0001189,2]
[339288337,1727439055583,-660.38,0.0001189,2]
[339288338,1727439055592,-660.38,0.0001189,2]
[339288339,1727439055601,-500.0,0.0001189,2]
[339288340,1727439055610,-500.0,0.0001189,2]
[339288341,1727439055619,-1924.19,0.0001189,2]
[339288342,1727439055628,-500.0,0.0001189,2]
[339288343,1727439055638,-582.27,0.0001189,2]
[339288344,1727439055647,-500.0,0.0001189,2]
[339288345,1727439055657,-652.08,0.0001189,2]
[339288346,1727439055666,-500.69998641,0.0001189,2]
[339288347,1727439055676,-652.08,0.0001189,2]
[339288348,1727439055685,-749.39,0.0001189,2]
[339288349,1727439055695,-500.0,0.0001189,2]
[339288350,1727439055703,-500.0,0.0001189,2]
[339288351,1727439055712,-500.0,0.0001189,2]
[339288352,1727439055721,-841.82,0.0001189,2]
[339288353,1727439055730,-500.0,0.0001189,2]
[339288354,1727439055739,-500.0,0.0001189,2]
[339288355,1727439055749,-500.0,0.0001189,2]
[339288356,1727439055759,-500.0,0.0001189,2]
[339288357,1727439055768,-831.6,0.0001189,2]
[339288358,1727439055777,-894.87,0.0001189,2]
[339288359,1727439055787,-500.0,0.0001189,2]
[339288360,1727439055796,-500.0,0.0001189,2]
[339288361,1727439055815,-500.0,0.0001189,2]
[339288362,1727439055823,-500.0,0.0001189,2]
[339288363,1727439055832,-500.0,0.0001189,2]
[339288364,1727439055841,-500.0,0.0001189,2]
[339288365,1727439055850,-500.0,0.0001189,2]
[339288366,1727439055859,-500.0,0.0001189,2]
[339288367,1727439055868,-500.0,0.0001189,2]
[339288368,1727439055876,-500.0,0.0001189,2]
[339288369,1727439055886,-500.0,0.0001189,2]
[339288370,1727439055895,-500.0,0.0001189,2]
[339288371,1727439055903,-775.32,0.0001189,2]
[339288372,1727439055912,-775.32,0.0001189,2]
[339288373,1727439055922,-603.72,0.0001189,2]
[339288374,1727439055931,-500.0,0.0001189,2]
[339288375,1727439055939,-500.0,0.0001189,2]
[339288376,1727439055949,-500.0,0.0001189,2]
[339288377,1727439055958,-500.0,0.0001189,2]
[339288378,1727439055967,-500.0,0.0001189,2]
[339288379,1727439055977,-500.0,0.0001189,2]
[339288380,1727439055986,-500.0,0.0001189,2]
[339288381,1727439055995,-500.0,0.0001189,2]
[339288382,1727439056004,-500.0,0.0001189,2]
[339288383,1727439056013,-822.76,0.0001189,2]
[339288384,1727439056022,-1093.11,0.0001189,2]
[339288385,1727439056031,-822.76,0.0001189,2]
[339288386,1727439056040,-2788.37,0.0001189,2]
[339288387,1727439056051,-500.0,0.0001189,2]
[339288388,1727439056060,-500.0,0.0001189,2]
[339288389,1727439056069,-500.0,0.0001189,2]
[339288390,1727439056078,-500.0,0.0001189,2]
[339288391,1727439056087,-500.0,0.0001189,2]
[339288392,1727439056096,-500.0,0.0001189,2]
[339288393,1727439056105,-500.0,0.0001189,2]
[339288394,1727439056114,-500.0,0.0001189,2]
[339288395,1727439056124,-901.23,0.0001189,2]
[339288396,1727439056133,-500.0,0.0001189,2]
[339288397,1727439056142,-901.23,0.0001189,2]
[339288398,1727439056151,-862.0,0.0001189,2]
[339288399,1727439056160,-862.0,0.0001189,2]
[339288400,1727439056171,-1865.16,0.0001189,2]
[339288401,1727439056180,-766.14,0.0001189,2]
[339288402,1727439056190,-572.46,0.0001189,2]
[339288403,1727439056199,-746.2,0.0001189,2]
[339288404,1727439056211,-19.6897431,0.0001189,2]
[339288405,1727439056234,-385.18,0.00011889,2]
[339288406,1727439056245,-480.3102569,0.0001189,2]
[339288407,1727439056254,-500.0,0.0001189,2]
[339288408,1727439056263,-500.0,0.0001189,2]
[339288409,1727439056272,-500.0,0.0001189,2]
[339288410,1727439056282,-655.86,0.0001189,2]
[339288411,1727439056293,-500.0,0.0001189,2]
[339288412,1727439056303,-974.79,0.0001189,2]
[339288413,1727439056312,-500.0,0.0001189,2]
[339288414,1727439056321,-240.1086994,0.0001189,2]
[339288415,1727439056331,-974.79,0.0001189,2]
[339288416,1727439056340,-1011.38,0.0001189,2]
[339288417,1727439056350,-311.38023742,0.0001189,2]
[339288418,1727439056363,-201.80976258,0.0001189,2]
[339288419,1727439056373,-500.0,0.0001189,2]
[339288420,1727439056383,-519.97,0.0001189,2]
[339288421,1727439056392,-174.15616097,0.0001189,2]
[339288422,1727439056401,-519.97,0.0001189,2]
[339288423,1727439056411,-500.0,0.0001189,2]
[339288424,1727439056420,-500.0,0.0001189,2]
[339288425,1727439056429,-500.0,0.0001189,2]
[339288426,1727439056439,-500.0,0.0001189,2]
[339288427,1727439056450,-485.82706785,0.0001189,2]
[339288428,1727439056462,-14.17293215,0.0001189,2]
[339288429,1727439056472,-500.0,0.0001189,2]
[339288430,1727439056485,-500.0,0.0001189,2]
[339288431,1727439056495,-1386.37,0.0001189,2]
[339288432,1727439056505,-502.51027654,0.0001189,2]
[339288433,1727439056515,-921.44,0.0001189,2]
[339288434,1727439056527,-500.0,0.0001189,2]
[339288435,1727439056536,-818.76679131,0.0001189,2]
[339288436,1727439056554,-208.32829753,0.00011889,2]
[339288437,1727439056563,-930.04320869,0.0001189,2]
[339288438,1727439056573,-1748.81,0.0001189,2]
[339288439,1727439056583,-119.87638873,0.0001189,2]
[339288440,1727439056594,-380.12361127,0.0001189,2]
[339288441,1727439056603,-119.87638873,0.0001189,2]
[339288442,1727439056614,-380.12361127,0.0001189,2]
[339288443,1727439056623,-500.0,0.0001189,2]
[339288444,1727439056632,-500.0,0.0001189,2]
[339288445,1727439056641,-500.0,0.0001189,2]
[339288446,1727439056650,-509.14,0.0001189,2]
[339288447,1727439056660,-500.0,0.0001189,2]
[339288448,1727439056669,-509.14,0.0001189,2]
[339288449,1727439056678,-739.32,0.0001189,2]
[339288450,1727439056687,-739.32,0.0001189,2]
[339288451,1727439056696,-500.0,0.0001189,2]
[339288452,1727439056705,-500.0,0.0001189,2]
[339288453,1727439056715,-500.0,0.0001189,2]
[339288454,1727439056727,-820.8,0.0001189,2]
[339288455,1727439056736,-1901.33,0.0001189,2]
[339288456,1727439056745,-1901.33,0.0001189,2]
[339288457,1727439056756,-500.0,0.0001189,2]
[339288458,1727439056767,-500.0,0.0001189,2]
[339288459,1727439056777,-500.0,0.0001189,2]
[339288460,1727439056786,-500.0,0.0001189,2]
[339288461,1727439056796,-974.43,0.0001189,2]
[339288462,1727439056805,-974.43,0.0001189,2]
[339288463,1727439056814,-500.0,0.0001189,2]
[339288464,1727439056824,-500.0,0.0001189,2]
[339288465,1727439056836,-500.0,0.0001189,2]
[339288466,1727439056846,-770.38,0.0001189,2]
[339288467,1727439056856,-770.38,0.0001189,2]
[339288468,1727439056867,-500.0,0.0001189,2]
[339288469,1727439056877,-1074.65,0.0001189,2]
[339288470,1727439056886,-1170.5,0.0001189,2]
[339288471,1727439056896,-500.0,0.0001189,2]
[339288472,1727439056905,-500.0,0.0001189,2]
[339288473,1727439056915,-500.0,0.0001189,2]
[339288474,1727439056924,-500.0,0.0001189,2]
[339288475,1727439056934,-1141.98,0.0001189,2]
[339288476,1727439056944,-500.0,0.0001189,2]
[339288477,1727439056953,-500.0,0.0001189,2]
[339288478,1727439056963,-1290.24,0.0001189,2]
[339288479,1727439056972,-1290.24,0.0001189,2]
[339288480,1727439056981,-500.0,0.0001189,2]
[339288481,1727439056990,-500.0,0.0001189,2]
[339288482,1727439057000,-500.0,0.0001189,2]
[339288483,1727439057009,-500.0,0.0001189,2]
[339288484,1727439057018,-500.0,0.0001189,2]
[339288485,1727439057027,-500.0,0.0001189,2]
[339288486,1727439057037,-500.0,0.0001189,2]
[339288487,1727439057048,-751.36,0.0001189,2]
[339288488,1727439057057,-1177.07,0.0001189,2]
[339288489,1727439057066,-500.0,0.0001189,2]
[339288490,1727439057075,-500.0,0.0001189,2]
[339288491,1727439057084,-500.0,0.0001189,2]
[339288492,1727439057093,-500.0,0.0001189,2]
[339288493,1727439057103,-500.0,0.0001189,2]
[339288494,1727439057113,-500.0,0.0001189,2]
[339288495,1727439057122,-794.37,0.0001189,2]
[339288496,1727439057132,-794.37,0.0001189,2]
[339288497,1727439057141,-500.0,0.0001189,2]
[339288498,1727439057150,-500.0,0.0001189,2]
[339288499,1727439057159,-500.0,0.0001189,2]
[339288500,1727439057169,-500.0,0.0001189,2]
[339288501,1727439057178,-500.0,0.0001189,2]
[339288502,1727439057187,-908.24,0.0001189,2]
[339288503,1727439057196,-500.0,0.0001189,2]
[339288504,1727439057206,-500.0,0.0001189,2]
[339288505,1727439057215,-500.0,0.0001189,2]
[339288506,1727439057224,-500.0,0.0001189,2]
[339288507,1727439057233,-1265.89,0.0001189,2]
[339288508,1727439057242,-500.0,0.0001189,2]
[339288509,1727439057251,-500.0,0.0001189,2]
[339288510,1727439057261,-656.96,0.0001189,2]
[339288511,1727439057272,-500.0,0.0001189,2]
[339288512,1727439057282,-656.96,0.0001189,2]
[339288513,1727439057291,-500.0,0.0001189,2]
[339288514,1727439057301,-500.0,0.0001189,2]
[339288515,1727439057310,-936.71,0.0001189,2]
[339288516,1727439057319,-500.0,0.0001189,2]
[339288517,1727439057329,-500.0,0.0001189,2]
[339288518,1727439057339,-500.0,0.0001189,2]
[339288519,1727439057349,-764.71,0.0001189,2]